fUST/lending_fUST_20250809
["ID","MTS","AMOUNT","RATE_DAILY","PERIOD"]
[378078784,1754717476390,-889.0,0.00025479,2]
[378078785,1754717476404,-3585.3,0.00025479,2]
[378078786,1754717476417,-607.44,0.00025479,2]
[378078787,1754717476429,-3000.0,0.00025512,2]
[378078788,1754717476440,-168.0,0.00025574,2]
[378078789,1754717476450,-168.0,0.00025602,2]
[378078790,1754717476459,-1200.0,0.00025648,2]
[378078791,1754717476469,-587.0,0.00025658,2]
[378078792,1754717476478,-1560.34,0.00025671,7]
[378078793,1754717476487,-259.67,0.00025671,7]
[378078794,1754717476497,-151.0,0.000257,13]
[378078795,1754717476506,-168.0,0.00025722,2]
[378078796,1754717476515,-294.3710774,0.00025753,2]
[378078797,1754717476527,-460.0,0.00025753,2]
[378078798,1754717476537,-460.0,0.00025753,2]
[378078799,1754717476546,-632.83,0.00025753,2]
[378078800,1754717476555,-460.0,0.00025753,2]
[378078801,1754717476565,-748.0,0.00025753,2]
[378078802,1754717476574,-503.24,0.00025753,2]
[378078803,1754717476586,-215.92355815,0.00025753,2]
[378078804,1754717476596,-460.0,0.00025753,2]
[378078805,1754717476606,-460.0,0.00025753,2]
[378078806,1754717476616,-872.77,0.00025753,2]
[378078807,1754717476628,-460.0,0.00025753,2]
[378078808,1754717476638,-623.59,0.00025753,2]
[378078809,1754717476647,-460.0,0.00025753,2]
[378078810,1754717476657,-460.0,0.00025753,2]
[378078811,1754717476667,-460.0,0.00025753,2]
[378078812,1754717476676,-200.03954777,0.00025753,2]
[378078813,1754717476686,-496.11,0.00025753,2]
[378078814,1754717476695,-481.14,0.00025753,2]
[378078815,1754717476705,-1328.21,0.00025753,2]
[378078816,1754717476715,-548.91,0.00025753,2]
[378078817,1754717476726,-1419.17,0.00025753,2]
[378078818,1754717476737,-460.0,0.00025753,2]
[378078819,1754717476747,-460.0,0.00025753,2]
[378078820,1754717476757,-460.0,0.00025753,2]
[378078821,1754717476767,-1181.72,0.00025753,2]
[378078822,1754717476777,-460.0,0.00025753,2]
[378078823,1754717476786,-813.16,0.00025753,2]
[378078824,1754717476795,-622.45,0.00025753,2]
[378078825,1754717476805,-460.0,0.00025753,2]
[378078826,1754717476814,-779.99,0.00025753,2]
[378078827,1754717476824,-1619.97,0.00025753,2]
[378078828,1754717476836,-460.0,0.00025753,2]
[378078829,1754717476846,-1148.8,0.00025753,2]
[378078830,1754717476856,-1244.78,0.00025753,2]
[378078831,1754717476866,-460.0,0.00025753,2]
[378078832,1754717477157,-2519.37,0.00025753,2]
[378078833,1754717477177,-503.86,0.00025753,2]
[378078834,1754717477189,-603.35,0.00025753,2]
[378078835,1754717477198,-638.61,0.00025753,2]
[378078836,1754717477207,-710.26,0.00025753,2]
[378078837,1754717477217,-460.0,0.00025753,2]
[378078838,1754717477226,-460.0,0.00025753,2]
[378078839,1754717477235,-727.66,0.00025753,2]
[378078840,1754717477244,-460.0,0.00025753,2]
[378078841,1754717477254,-5453.14,0.00025753,2]
[378078842,1754717477264,-2213.25,0.00025753,2]
[378078843,1754717477273,-2392.79,0.00025753,2]
[378078844,1754717477283,-1847.54,0.00025753,2]
[378078845,1754717477293,-786.49,0.00025753,2]
[378078846,1754717477303,-460.0,0.00025753,2]
[378078847,1754717477312,-915.76,0.00025753,2]
[378078848,1754717477321,-151.0,0.00025753,7]
[378078849,1754717477333,-466.57,0.00025753,2]
[378078850,1754717477343,-460.0,0.00025753,2]
[378078851,1754717477353,-542.22,0.00025753,2]
[378078852,1754717477362,-533.05,0.00025753,2]
[378078853,1754717477371,-557.41,0.00025753,2]
[378078854,1754717477381,-379.83441443,0.00025753,2]
[378078855,1754717477392,-460.0,0.00025753,2]
[378078856,1754717477404,-460.0,0.00025753,2]
[378078857,1754717477413,-1807.89,0.00025753,2]
[378078858,1754717477423,-211.274078,0.00025753,7]
[378078859,1754717477432,-1773.57,0.00025753,2]
[378078860,1754717477442,-460.0,0.00025753,2]
[378078861,1754717477452,-1299.54,0.00025753,2]
[378078862,1754717477461,-460.0,0.00025753,2]
[378078863,1754717477471,-211.274078,0.00025753,7]
[378078864,1754717477481,-726.66,0.00025753,2]
[378078865,1754717477491,-460.0,0.00025753,2]
[378078866,1754717477501,-649.7,0.00025753,2]
[378078867,1754717477512,-1110.73,0.00025753,2]
[378078868,1754717477527,-971.96,0.00025753,2]
[378078869,1754717477540,-1447.77,0.00025753,2]
[378078870,1754717477550,-500.75,0.00025753,2]
[378078871,1754717477560,-460.0,0.00025753,2]
[378078872,1754717477570,-460.0,0.00025753,2]
[378078873,1754717477583,-460.0,0.00025753,2]
[378078874,1754717477592,-672.29,0.00025753,2]
[378078875,1754717477602,-1699.23,0.00025753,2]
[378078876,1754717477612,-460.0,0.00025753,2]
[378078877,1754717477623,-520.08,0.00025753,2]
[378078878,1754717477632,-483.00644821,0.00025753,2]
[378078879,1754717477641,-889.0,0.00025753,2]
[378078880,1754717477652,-3585.3,0.00025753,2]
[378078881,1754717477662,-607.44,0.00025753,2]
[378078882,1754717477671,-460.0,0.00025772,2]
[378078883,1754717477681,-500.0,0.00025775,2]
[378078884,1754717477690,-500.0,0.00025775,2]
[378078885,1754717477700,-500.0,0.00025775,2]
[378078886,1754717477710,-500.0,0.00025775,2]
[378078887,1754717477720,-500.0,0.00025775,2]
[378078888,1754717477729,-600.0,0.00025775,2]
[378078889,1754717477739,-500.0,0.00025775,2]
[378078890,1754717477748,-502.1154543,0.00025775,2]
[378078891,1754717477758,-2752.01158172,0.00025808,2]
[378078892,1754717477768,-736.27025814,0.00025808,2]
[378078893,1754717477777,-168.0,0.00025854,2]
[378078894,1754717477787,-168.0,0.00025863,2]
[378078895,1754717477796,-168.0,0.00025879,2]
[378078896,1754717477805,-168.0,0.00025883,2]
[378078897,1754717477815,-156.0,0.0002589,7]
[378078898,1754717477824,-244.731309,0.00025968,7]
[378078899,1754717477839,-244.731311,0.00025968,7]
[378078900,1754717477848,-168.0,0.00025978,2]
[378078901,1754717477858,-1761.03,0.00026,10]
[378078902,1754717477868,-460.0,0.00026027,2]
[378078903,1754717477878,-460.0,0.00026027,2]
[378078904,1754717477887,-632.83,0.00026027,2]
[378078905,1754717477896,-291.203118,0.00026027,7]
[378078906,1754717477906,-460.0,0.00026027,2]
[378078907,1754717477915,-748.0,0.00026027,2]
[378078908,1754717477925,-503.24,0.00026027,2]
[378078909,1754717477935,-460.0,0.00026027,2]
[378078910,1754717477952,-460.0,0.00026027,2]
[378078911,1754717477962,-151.0,0.00026027,7]
[378078912,1754717477971,-872.77,0.00026027,2]
[378078913,1754717477981,-151.0,0.00026027,7]
[378078914,1754717477990,-350.09618825,0.00026027,2]
[378078915,1754717477999,-151.0,0.00026027,7]
[378078916,1754717478009,-151.0,0.00026027,7]
[378078917,1754717478018,-623.59,0.00026027,2]
[378078918,1754717478027,-151.0,0.00026027,7]
[378078919,1754717478037,-151.0,0.00026027,7]
[378078920,1754717478047,-460.0,0.00026027,2]
[378078921,1754717478056,-460.0,0.00026027,2]
[378078922,1754717478065,-460.0,0.00026027,2]
[378078923,1754717478075,-481.14,0.00026027,2]
[378078924,1754717478086,-1328.21,0.00026027,2]
[378078925,1754717478095,-789.721827,0.00026027,7]
[378078926,1754717478106,-789.721827,0.00026027,7]
[378078927,1754717478116,-548.91,0.00026027,2]
[378078928,1754717478126,-1419.17,0.00026027,2]
[378078929,1754717478136,-460.0,0.00026027,2]
[378078930,1754717478146,-460.0,0.00026027,2]
[378078931,1754717478155,-460.0,0.00026027,2]
[378078932,1754717478165,-1181.72,0.00026027,2]
[378078933,1754717478174,-320.24194173,0.00026027,2]
[378078934,1754717478184,-813.16,0.00026027,2]
[378078935,1754717478193,-460.0,0.00026027,2]
[378078936,1754717478203,-622.45,0.00026027,2]
[378078937,1754717478212,-779.99,0.00026027,2]
[378078938,1754717478222,-1619.97,0.00026027,2]
[378078939,1754717478231,-460.0,0.00026027,2]
[378078940,1754717478241,-1148.8,0.00026027,2]
[378078941,1754717478252,-1244.78,0.00026027,2]
[378078942,1754717478262,-460.0,0.00026027,2]
[378078943,1754717478272,-2519.37,0.00026027,2]
[378078944,1754717478282,-503.86,0.00026027,2]
[378078945,1754717478292,-603.35,0.00026027,2]
[378078946,1754717478302,-638.61,0.00026027,2]
[378078947,1754717478312,-710.26,0.00026027,2]
[378078948,1754717478322,-460.0,0.00026027,2]
[378078949,1754717478334,-460.0,0.00026027,2]
[378078950,1754717478344,-727.66,0.00026027,2]
[378078951,1754717478354,-460.0,0.00026027,2]
[378078952,1754717478363,-5453.14,0.00026027,2]
[378078953,1754717478373,-2213.25,0.00026027,2]
[378078954,1754717478382,-2392.79,0.00026027,2]
[378078955,1754717478392,-1847.54,0.00026027,2]
[378078956,1754717478403,-786.49,0.00026027,2]
[378078957,1754717478413,-460.0,0.00026027,2]
[378078958,1754717478422,-915.76,0.00026027,2]
[378078959,1754717478432,-466.57,0.00026027,2]
[378078960,1754717478442,-460.0,0.00026027,2]
[378078961,1754717478451,-542.22,0.00026027,2]
[378078962,1754717478461,-533.05,0.00026027,2]
[378078963,1754717478470,-557.41,0.00026027,2]
[378078964,1754717478480,-460.0,0.00026027,2]
[378078965,1754717478490,-460.0,0.00026027,2]
[378078966,1754717478501,-1807.89,0.00026027,2]
[378078967,1754717478511,-1773.57,0.00026027,2]
[378078968,1754717478521,-1299.54,0.00026027,2]
[378078969,1754717478536,-460.0,0.00026027,2]
[378078970,1754717478545,-726.66,0.00026027,2]
[378078971,1754717478556,-460.0,0.00026027,2]
[378078972,1754717478566,-649.7,0.00026027,2]
[378078973,1754717478579,-1110.73,0.00026027,2]
[378078974,1754717478590,-971.96,0.00026027,2]
[378078975,1754717478600,-1447.77,0.00026027,2]
[378078976,1754717478613,-500.75,0.00026027,2]
[378078977,1754717478623,-460.0,0.00026027,2]
[378078978,1754717478634,-460.0,0.00026027,2]
[378078979,1754717478644,-672.29,0.00026027,2]
[378078980,1754717478653,-1699.23,0.00026027,2]
[378078981,1754717478663,-460.0,0.00026027,2]
[378078982,1754717478673,-520.08,0.00026027,2]
[378078983,1754717478693,-889.0,0.00026027,2]
[378078984,1754717478709,-3585.3,0.00026027,2]
[378078985,1754717478729,-607.44,0.00026027,2]
[378078986,1754717478739,-200.29714861,0.00026028,2]
[378078987,1754717478749,-151.0,0.00026028,2]
[378078988,1754717478759,-151.0,0.00026028,2]
[378078989,1754717478768,-151.33826675,0.00026028,2]
[378078990,1754717478778,-151.32428984,0.00026028,2]
[378078991,1754717478788,-151.7498476,0.00026028,2]
[378078992,1754717478797,-211.12981513,0.00026028,2]
[378078993,1754717478806,-151.4877535,0.00026028,2]
[378078994,1754717478816,-153.19746771,0.00026028,2]
[378078995,1754717478826,-152.35217372,0.00026028,2]
[378078996,1754717478836,-151.0,0.00026028,2]
[378078997,1754717478846,-260.30979556,0.00026028,2]
[378078998,1754717478855,-253.74157055,0.00026028,2]
[378078999,1754717478864,-500.0,0.00026028,2]
[378079000,1754717478873,-217.9374915,0.00026028,2]
[378079001,1754717478883,-500.0,0.00026028,2]
[378079002,1754717478893,-151.0,0.00026028,2]
[378079003,1754717478902,-500.0,0.00026028,2]
[378079004,1754717478912,-151.0,0.00026028,2]
[378079005,1754717478921,-151.0,0.00026028,2]
[378079006,1754717478931,-151.0,0.00026028,2]
[378079007,1754717478941,-151.0,0.00026028,2]
[378079008,1754717478950,-693.01547049,0.0002606,2]
[378079009,1754717478960,-168.0,0.00026097,2]
[378079010,1754717478969,-151.0,0.000261,13]
[378079011,1754717478979,-160.0,0.00026157,3]
[378079012,1754717478989,-770.01998714,0.00026196,2]
[378079013,1754717478999,-27052.19365492,0.000263,7]
[378079014,1754717479009,-205.267949,0.000263,7]
[378079015,1754717479018,-205.267949,0.000263,7]
[378079016,1754717479028,-460.0,0.00026301,2]
[378079017,1754717479038,-532.07921807,0.00026301,2]
[378079018,1754717479047,-632.83,0.00026301,2]
[378079019,1754717479056,-460.0,0.00026301,2]
[378079020,1754717479066,-748.0,0.00026301,2]
[378079021,1754717479075,-503.24,0.00026301,2]
[378079022,1754717479085,-460.0,0.00026301,2]
[378079023,1754717479095,-460.0,0.00026301,2]
[378079024,1754717479104,-872.77,0.00026301,2]
[378079025,1754717479114,-623.59,0.00026301,2]
[378079026,1754717479123,-460.0,0.00026301,2]
[378079027,1754717479133,-460.0,0.00026301,2]
[378079028,1754717479142,-481.14,0.00026301,2]
[378079029,1754717479152,-1328.21,0.00026301,2]
[378079030,1754717479162,-548.91,0.00026301,2]
[378079031,1754717479172,-1419.17,0.00026301,2]
[378079032,1754717479182,-460.0,0.00026301,2]
[378079033,1754717479192,-460.0,0.00026301,2]
[378079034,1754717479202,-460.0,0.00026301,2]
[378079035,1754717479211,-1181.72,0.00026301,2]
[378079036,1754717479221,-813.16,0.00026301,2]
[378079037,1754717479231,-158.93522068,0.00026301,2]
[378079038,1754717479241,-622.45,0.00026301,2]
[378079039,1754717479251,-779.99,0.00026301,2]
[378079040,1754717479261,-1619.97,0.00026301,2]
[378079041,1754717479271,-1148.8,0.00026301,2]
[378079042,1754717479280,-460.0,0.00026301,2]
[378079043,1754717479290,-1244.78,0.00026301,2]
[378079044,1754717479300,-460.0,0.00026301,2]
[378079045,1754717479309,-2519.37,0.00026301,2]
[378079046,1754717479319,-503.86,0.00026301,2]
[378079047,1754717479330,-603.35,0.00026301,2]
[378079048,1754717479339,-638.61,0.00026301,2]
[378079049,1754717479349,-710.26,0.00026301,2]
[378079050,1754717479358,-460.0,0.00026301,2]
[378079051,1754717479367,-529.6885551,0.00026301,2]
[378079052,1754717479376,-727.66,0.00026301,2]
[378079053,1754717479386,-460.0,0.00026301,2]
[378079054,1754717479395,-5453.14,0.00026301,2]
[378079055,1754717479405,-3349.70578509,0.00026301,2]
[378079056,1754717479415,-2213.25,0.00026301,2]
[378079057,1754717479423,-2392.79,0.00026301,2]
[378079058,1754717479433,-1847.54,0.00026301,2]
[378079059,1754717479442,-786.49,0.00026301,2]
[378079060,1754717479452,-460.0,0.00026301,2]
[378079061,1754717479462,-915.76,0.00026301,2]
[378079062,1754717479471,-466.57,0.00026301,2]
[378079063,1754717479480,-460.0,0.00026301,2]
[378079064,1754717479489,-542.22,0.00026301,2]
[378079065,1754717479499,-533.05,0.00026301,2]
[378079066,1754717479509,-557.41,0.00026301,2]
[378079067,1754717479519,-460.0,0.00026301,2]
[378079068,1754717479531,-1807.89,0.00026301,2]
[378079069,1754717479541,-1773.57,0.00026301,2]
[378079070,1754717479551,-1299.54,0.00026301,2]
[378079071,1754717479561,-460.0,0.00026301,2]
[378079072,1754717479570,-726.66,0.00026301,2]
[378079073,1754717479580,-460.0,0.00026301,2]
[378079074,1754717479590,-649.7,0.00026301,2]
[378079075,1754717479599,-1110.73,0.00026301,2]
[378079076,1754717479610,-971.96,0.00026301,2]
[378079077,1754717479620,-1447.77,0.00026301,2]
[378079078,1754717479630,-500.75,0.00026301,2]
[378079079,1754717479640,-460.0,0.00026301,2]
[378079080,1754717479650,-473.56707233,0.00026301,2]
[378079081,1754717479661,-672.29,0.00026301,2]
[378079082,1754717479671,-1699.23,0.00026301,2]
[378079083,1754717479680,-460.0,0.00026301,2]
[378079084,1754717479690,-520.08,0.00026301,2]
[378079085,1754717479700,-889.0,0.00026301,2]
[378079086,1754717479710,-3585.3,0.00026301,2]
[378079087,1754717479720,-607.44,0.00026301,2]
[378079088,1754717479729,-198.0,0.00026302,2]
[378079089,1754717479739,-151.0,0.00026302,2]
[378079090,1754717479748,-500.0,0.00026302,2]
[378079091,1754717479758,-500.0,0.00026302,2]
[378079092,1754717479767,-151.0,0.00026302,2]
[378079093,1754717479777,-500.0,0.00026302,2]
[378079094,1754717479787,-151.0,0.00026302,2]
[378079095,1754717479797,-151.0,0.00026302,2]
[378079096,1754717479807,-151.0,0.00026302,2]
[378079097,1754717479817,-150.0,0.00026312,2]
[378079098,1754717479827,-560.0,0.0002632,2]
[378079099,1754717479838,-1200.0,0.00026323,2]
[378079100,1754717479848,-168.0,0.00026324,2]
[378079101,1754717479857,-2150.0,0.00026338,2]
[378079102,1754717479867,-971.0,0.00026338,2]
[378079103,1754717479876,-636.0,0.00026338,2]
[378079104,1754717479886,-408.0,0.00026338,2]
[378079105,1754717480002,-408.0,0.00026338,2]
[378079106,1754717480012,-503.70208939,0.00026338,2]
[378079107,1754717480022,-168.0,0.00026343,2]
[378079108,1754717480032,-466.23706779,0.00026387,2]
[378079109,1754717480041,-14798.40241536,0.000265,2]
[378079110,1754717480051,-50000.0,0.000265,7]
[378079111,1754717480061,-250.0,0.000265,7]
[378079112,1754717480071,-250.0,0.000265,7]
[378079113,1754717480080,-388.5,0.000265,7]
[378079114,1754717480089,-151.0,0.000265,7]
[378079115,1754717480099,-151.0,0.000265,7]
[378079116,1754717480108,-151.0,0.000265,7]
[378079117,1754717480117,-194.391332,0.000265,7]
[378079118,1754717480127,-194.391332,0.000265,7]
[378079119,1754717480136,-151.0,0.000265,7]
[378079120,1754717480145,-151.0,0.000265,7]
[378079121,1754717480154,-151.0,0.000265,7]
[378079122,1754717480163,-313.966754,0.000265,7]
[378079123,1754717480173,-313.966754,0.000265,7]
[378079124,1754717480183,-319.152472,0.000265,7]
[378079125,1754717480192,-319.152472,0.000265,7]
[378079126,1754717480201,-216.61183532,0.000265,7]
[378079127,1754717480211,-151.0,0.000265,7]
[378079128,1754717480220,-12666.14847857,0.000265,7]
[378079129,1754717480231,-312.16666667,0.000265,7]
[378079130,1754717480241,-211.274078,0.000265,7]
[378079131,1754717480250,-211.274078,0.000265,7]
[378079132,1754717480259,-3687.5,0.00026575,2]
[378079133,1754717480268,-460.0,0.00026575,2]
[378079134,1754717480278,-632.83,0.00026575,2]
[378079135,1754717480287,-460.0,0.00026575,2]
[378079136,1754717480296,-748.0,0.00026575,2]
[378079137,1754717480305,-503.24,0.00026575,2]
[378079138,1754717480315,-460.0,0.00026575,2]
[378079139,1754717480325,-460.0,0.00026575,2]
[378079140,1754717480335,-872.77,0.00026575,2]
[378079141,1754717480345,-623.59,0.00026575,2]
[378079142,1754717480354,-460.0,0.00026575,2]
[378079143,1754717480364,-460.0,0.00026575,2]
[378079144,1754717480373,-481.14,0.00026575,2]
[378079145,1754717480383,-1328.21,0.00026575,2]
[378079146,1754717480393,-548.91,0.00026575,2]
[378079147,1754717480403,-1419.17,0.00026575,2]
[378079148,1754717480412,-524.71158442,0.00026575,2]
[378079149,1754717480422,-460.0,0.00026575,2]
[378079150,1754717480432,-460.0,0.00026575,2]
[378079151,1754717480441,-1181.72,0.00026575,2]
[378079152,1754717480451,-813.16,0.00026575,2]
[378079153,1754717480460,-622.45,0.00026575,2]
[378079154,1754717480469,-779.99,0.00026575,2]
[378079155,1754717480478,-1619.97,0.00026575,2]
[378079156,1754717480488,-460.0,0.00026575,2]
[378079157,1754717480498,-1148.8,0.00026575,2]
[378079158,1754717480507,-1244.78,0.00026575,2]
[378079159,1754717480516,-484.05237576,0.00026575,2]
[378079160,1754717480528,-2519.37,0.00026575,2]
[378079161,1754717480539,-503.86,0.00026575,2]
[378079162,1754717480548,-603.35,0.00026575,2]
[378079163,1754717480557,-638.61,0.00026575,2]
[378079164,1754717480567,-710.26,0.00026575,2]
[378079165,1754717480578,-263.23497626,0.00026575,2]
[378079166,1754717480589,-727.66,0.00026575,2]
[378079167,1754717480599,-460.0,0.00026575,2]
[378079168,1754717480611,-5453.14,0.00026575,2]
[378079169,1754717480622,-2213.25,0.00026575,2]
[378079170,1754717480631,-2392.79,0.00026575,2]
[378079171,1754717480640,-1847.54,0.00026575,2]
[378079172,1754717480651,-786.49,0.00026575,2]
[378079173,1754717480660,-460.0,0.00026575,2]
[378079174,1754717480669,-915.76,0.00026575,2]
[378079175,1754717480679,-466.57,0.00026575,2]
[378079176,1754717480689,-542.22,0.00026575,2]
[378079177,1754717480699,-460.0,0.00026575,2]
[378079178,1754717480708,-533.05,0.00026575,2]
[378079179,1754717480718,-557.41,0.00026575,2]
[378079180,1754717480729,-460.0,0.00026575,2]
[378079181,1754717480739,-1807.89,0.00026575,2]
[378079182,1754717480748,-1773.57,0.00026575,2]
[378079183,1754717480758,-1299.54,0.00026575,2]
[378079184,1754717480767,-460.0,0.00026575,2]
[378079185,1754717480777,-726.66,0.00026575,2]
[378079186,1754717480787,-594.6725337,0.00026575,2]
[378079187,1754717480796,-649.7,0.00026575,2]
[378079188,1754717480807,-1110.73,0.00026575,2]
[378079189,1754717480816,-971.96,0.00026575,2]
[378079190,1754717480825,-1447.77,0.00026575,2]
[378079191,1754717480835,-500.75,0.00026575,2]
[378079192,1754717480845,-460.0,0.00026575,2]
[378079193,1754717480854,-672.29,0.00026575,2]
[378079194,1754717480864,-1699.23,0.00026575,2]
[378079195,1754717480875,-153.41258083,0.00026575,2]
[378079196,1754717480884,-520.08,0.00026575,2]
[378079197,1754717480894,-889.0,0.00026575,2]
[378079198,1754717480904,-3585.3,0.00026575,2]
[378079199,1754717480914,-607.44,0.00026575,2]
[378079200,1754717480923,-249.95633272,0.00026576,2]
[378079201,1754717480933,-500.0,0.00026576,2]
[378079202,1754717480942,-201.32751794,0.00026576,2]
[378079203,1754717480952,-252.53139995,0.00026576,2]
[378079204,1754717480962,-500.0,0.00026576,2]
[378079205,1754717480971,-151.0,0.00026576,2]
[378079206,1754717480982,-200.82943486,0.00026576,2]
[378079207,1754717480991,-151.0,0.00026576,2]
[378079208,1754717481002,-151.0,0.000266,10]
[378079209,1754717481012,-160.0,0.0002663,4]
[378079210,1754717481022,-168.0,0.00026661,2]
[378079211,1754717481031,-386.874563,0.00026676,2]
[378079212,1754717481041,-200.0,0.00026681,15]
[378079213,1754717481050,-200.0,0.00026681,15]
[378079214,1754717481059,-200.0,0.00026681,15]
[378079215,1754717481069,-200.0,0.00026681,15]
[378079216,1754717481079,-200.0,0.00026681,15]
[378079217,1754717481090,-200.0,0.00026681,15]
[378079218,1754717481099,-200.0,0.00026681,15]
[378079219,1754717481109,-200.0,0.00026681,15]
[378079220,1754717481119,-358.0,0.00026681,15]
[378079221,1754717481129,-168.0,0.00026699,2]
[378079222,1754717481139,-3687.5,0.00026849,2]
[378079223,1754717481148,-460.0,0.00026849,2]
[378079224,1754717481157,-632.83,0.00026849,2]
[378079225,1754717481167,-460.0,0.00026849,2]
[378079226,1754717481176,-748.0,0.00026849,2]
[378079227,1754717481185,-503.24,0.00026849,2]
[378079228,1754717481194,-460.0,0.00026849,2]
[378079229,1754717481204,-460.0,0.00026849,2]
[378079230,1754717481213,-151.0,0.00026849,7]
[378079231,1754717481223,-872.77,0.00026849,2]
[378079232,1754717481232,-151.0,0.00026849,7]
[378079233,1754717481242,-151.0,0.00026849,7]
[378079234,1754717481251,-151.0,0.00026849,7]
[378079235,1754717481260,-623.59,0.00026849,2]
[378079236,1754717481270,-151.0,0.00026849,7]
[378079237,1754717481279,-154.228275,0.00026849,7]
[378079238,1754717481289,-460.0,0.00026849,2]
[378079239,1754717481298,-460.0,0.00026849,2]
[378079240,1754717481308,-481.14,0.00026849,2]
[378079241,1754717481317,-1328.21,0.00026849,2]
[378079242,1754717481327,-789.721827,0.00026849,7]
[378079243,1754717481337,-789.721827,0.00026849,7]
[378079244,1754717481347,-548.91,0.00026849,2]
[378079245,1754717481357,-1419.17,0.00026849,2]
[378079246,1754717481367,-460.0,0.00026849,2]
[378079247,1754717481376,-460.0,0.00026849,2]
[378079248,1754717481386,-1181.72,0.00026849,2]
[378079249,1754717481406,-813.16,0.00026849,2]
[378079250,1754717481418,-622.45,0.00026849,2]
[378079251,1754717481428,-779.99,0.00026849,2]
[378079252,1754717481440,-1619.97,0.00026849,2]
[378079253,1754717481450,-460.0,0.00026849,2]
[378079254,1754717481460,-1148.8,0.00026849,2]
[378079255,1754717481470,-1244.78,0.00026849,2]
[378079256,1754717481479,-2519.37,0.00026849,2]
[378079257,1754717481488,-503.86,0.00026849,2]
[378079258,1754717481498,-603.35,0.00026849,2]
[378079259,1754717481507,-638.61,0.00026849,2]
[378079260,1754717481516,-710.26,0.00026849,2]
[378079261,1754717481526,-727.66,0.00026849,2]
[378079262,1754717481538,-460.0,0.00026849,2]
[378079263,1754717481548,-5453.14,0.00026849,2]
[378079264,1754717481557,-2213.25,0.00026849,2]
[378079265,1754717481566,-2392.79,0.00026849,2]
[378079266,1754717481576,-1847.54,0.00026849,2]
[378079267,1754717481588,-786.49,0.00026849,2]
[378079268,1754717481598,-460.0,0.00026849,2]
[378079269,1754717481608,-915.76,0.00026849,2]
[378079270,1754717481618,-466.57,0.00026849,2]
[378079271,1754717481627,-542.22,0.00026849,2]
[378079272,1754717481636,-460.0,0.00026849,2]
[378079273,1754717481646,-533.05,0.00026849,2]
[378079274,1754717481655,-557.41,0.00026849,2]
[378079275,1754717481665,-460.0,0.00026849,2]
[378079276,1754717481674,-1807.89,0.00026849,2]
[378079277,1754717481684,-1773.57,0.00026849,2]
[378079278,1754717481693,-1299.54,0.00026849,2]
[378079279,1754717481703,-460.0,0.00026849,2]
[378079280,1754717481712,-726.66,0.00026849,2]
[378079281,1754717481722,-649.7,0.00026849,2]
[378079282,1754717481732,-1110.73,0.00026849,2]
[378079283,1754717481741,-971.96,0.00026849,2]